bitfinex/quotes_SOLUSD_20250201
["timestamp","ask_amount","ask_price","bid_price","bid_amount"]
[1738420142673,0.3976727,227.44,227.43,14.07115133]
[1738420143375,0.3976727,227.46,227.44,13.41184853]
[1738420143544,0.3976727,227.46,227.45,0.65927458]
[1738420147640,0.3976727,227.46,227.43,0.65935339]
[1738420148560,0.3976727,227.46,227.44,0.65935425]
[1738420152972,0.3976727,227.42,227.41,0.65943483]
[1738420153146,0.063,227.47,227.36,0.68952242]
[1738420153147,0.3976727,227.38,227.36,0.68952242]
[1738420153348,0.3976727,227.38,227.37,13.41184853]
[1738420154147,0.3976727,227.38,227.37,13.44184853]
[1738420154747,0.3976727,227.38,227.37,0.03]
[1738420158587,0.3976727,227.38,227.37,8.20921703]
[1738420158769,0.3976727,227.38,227.37,0.03]
[1738420165561,0.3976727,227.4,227.37,21.62106556]
[1738420165762,0.3976727,227.4,227.38,0.6594665]
[1738420168579,0.3976727,227.38,227.37,0.03]
[1738420177084,1.0585727,227.38,227.37,0.03]
[1738420178093,0.3976727,227.38,227.37,0.03]
[1738420179277,0.4606727,227.38,227.37,0.03]
[1738420183394,1.4606727,227.38,227.37,0.03]
[1738420186084,2.1215727,227.38,227.37,0.03]
[1738420187909,2.1215727,227.38,227.36,0.03]
[1738420187910,0.3976727,227.32,227.31,0.03]
[1738420188114,1.0585727,227.32,227.31,0.03]
[1738420189277,0.3976727,227.32,227.31,0.03]
[1738420190177,1.0585727,227.32,227.31,0.03]
[1738420193802,2.8202487,227.32,227.31,0.03]
[1738420196197,2.1593487,227.32,227.31,0.03]
[1738420196405,0.3976727,227.32,227.31,0.03]
[1738420198280,1.0585727,227.32,227.31,0.03]
[1738420201706,2.0585727,227.32,227.31,0.03]
[1738420202600,3.0585727,227.32,227.31,0.03]
[1738420205321,2.0585727,227.32,227.31,0.03]
[1738420205693,3.0585727,227.32,227.31,0.03]
[1738420206115,23.0585727,227.32,227.31,0.03]
[1738420206426,23.0585727,227.32,227.3,0.03]
[1738420206427,29.3445727,227.32,227.3,0.03]
[1738420207905,20.0,227.31,227.3,0.03]
[1738420212855,0.3976727,227.23,227.22,0.03]
[1738420225251,0.3976727,227.23,227.22,13.44184853]
[1738420225441,0.3976727,227.25,227.22,21.62106556]
[1738420225633,0.3976727,227.25,227.24,8.17921703]
[1738420228026,0.3976727,227.25,227.24,21.59106556]
[1738420228347,0.3976727,227.29,227.26,1.5385]
[1738420228557,0.3976727,227.29,227.28,8.17921703]
[1738420229425,0.063,227.3,227.28,8.17921703]
[1738420229643,0.063,227.3,227.29,0.65977857]
[1738420230438,0.063,227.3,227.29,14.0716271]
[1738420230841,0.063,227.3,227.29,14.1971171]
[1738420231042,0.063,227.36,227.32,0.12549]
[1738420231269,0.063,227.36,227.35,21.59106556]
[1738420231944,0.063,227.36,227.35,8.17921703]
[1738420232148,0.3976727,227.34,227.33,8.83873218]
[1738420232350,0.063,227.36,227.34,13.41184853]
[1738420232549,0.063,227.36,227.35,0.65954206]
[1738420233561,0.063,227.36,227.34,0.65966265]
[1738420234659,0.3976727,227.35,227.34,0.65966265]
[1738420237042,0.063,227.36,227.34,14.07151118]
[1738420237237,0.063,227.36,227.35,21.59106556]
[1738420237442,0.063,227.36,227.35,22.25059879]
[1738420237859,0.063,227.36,227.35,22.37608879]
[1738420238055,0.063,227.36,227.35,22.25059879]
[1738420238363,0.063,227.36,227.35,21.59106556]
[1738420239677,0.063,227.36,227.35,22.25062433]
[1738420239846,0.063,227.36,227.35,26.90010433]
[1738420240041,0.063,227.36,227.35,161.60010433]
[1738420240241,0.063,227.36,227.35,160.94054556]
[1738420240782,0.063,227.36,227.35,161.94054556]
[1738420240949,0.063,227.36,227.35,196.42879368]
[1738420241283,0.063,227.38,227.37,38.18641853]
[1738420241441,0.063,227.38,227.37,214.44180965]
[1738420241645,0.063,227.38,227.37,213.78250368]
[1738420242663,0.063,227.38,227.37,214.90799368]
[1738420242845,0.063,227.38,227.37,234.29449368]
[1738420243442,0.063,227.38,227.37,233.29449368]
[1738420243668,0.063,227.38,227.37,234.29449368]
[1738420247074,0.063,227.38,227.37,233.29449368]
[1738420247370,0.063,227.38,227.37,187.85446286]
[1738420248366,0.063,227.38,227.37,220.57133098]
[1738420249069,0.063,227.38,227.37,221.57133098]
[1738420249261,0.063,227.38,227.37,220.57133098]
[1738420249760,0.063,227.38,227.37,190.83446286]
[1738420249961,0.063,227.38,227.37,223.55133098]
[1738420251183,0.063,227.38,227.37,222.94900368]
[1738420251770,0.063,227.38,227.37,223.67682098]
[1738420253688,0.063,227.38,227.37,236.87682098]
[1738420253993,0.063,227.46,227.45,21.59106556]
[1738420254378,0.063,227.46,227.45,22.25028482]
[1738420255308,0.063,227.46,227.45,0.65921926]
[1738420255592,0.063,227.46,227.44,0.65937027]
[1738420255789,0.3976727,227.43,227.42,0.65940047]
[1738420255971,0.3976727,227.43,227.42,14.071249]
[1738420256368,0.3976727,227.43,227.41,0.65940077]
[1738420256584,0.3976727,227.38,227.36,0.68950844]
[1738420257095,0.3976727,227.38,227.37,13.41184853]
[1738420262103,0.3976727,227.4,227.37,21.59106556]
[1738420262311,0.3976727,227.4,227.39,13.41184853]
[1738420262515,0.3976727,227.44,227.39,21.59106556]
[1738420262819,0.3976727,227.44,227.42,8.17921703]
[1738420263006,0.3976727,227.44,227.43,14.07122305]
[1738420263212,0.4606727,227.46,227.44,13.41184853]
[1738420263423,0.063,227.46,227.45,22.25037349]
[1738420266718,0.4606727,227.46,227.45,0.65930793]
[1738420266919,0.4606727,227.46,227.44,0.65937554]
[1738420267122,0.3976727,227.43,227.42,0.65940478]
[1738420267312,0.3976727,227.43,227.38,0.65949317]
[1738420267512,0.3976727,227.43,227.39,13.41184853]
[1738420267724,0.3976727,227.41,227.4,14.07135221]
[1738420268727,0.3976727,227.45,227.41,13.41184853]
[1738420268910,0.3976727,227.45,227.43,13.41184853]
[1738420269105,0.3976727,227.45,227.44,0.65937017]
[1738420269307,0.3976727,227.45,227.44,14.0712187]
[1738420270628,0.063,227.46,227.45,13.41184853]
[1738420270803,0.063,227.46,227.45,8.17921703]
[1738420271223,0.063,227.46,227.45,21.59106556]
[1738420271399,0.063,227.46,227.45,25.98756556]
[1738420271599,0.063,227.46,227.45,26.64677074]
[1738420272623,0.063,227.46,227.45,22.25027074]
[1738420274523,0.063,227.46,227.45,22.37576074]
[1738420274924,0.063,227.46,227.45,26.77226074]
[1738420275906,0.063,227.46,227.45,26.89775074]
[1738420276636,0.063,227.46,227.45,27.02324074]
[1738420277033,0.063,227.5,227.49,20.37647]
[1738420277221,0.063,227.5,227.49,180.18103912]
[1738420277417,0.063,227.5,227.49,179.39655556]
[1738420277816,0.063,227.5,227.49,183.97323871]
[1738420278305,0.063,227.5,227.49,188.36893871]
[1738420279306,0.063,227.5,227.49,151.09184853]
[1738420279506,0.063,227.5,227.49,163.84774871]
[1738420279934,0.063,227.5,227.49,148.11184853]
[1738420280110,0.4606727,227.5,227.49,134.7]
[1738420281631,0.4606727,227.5,227.48,15.73590018]
[1738420281812,0.4606727,227.5,227.49,0.65921504]
[1738420283037,0.3976727,227.48,227.47,0.65923793]
[1738420283221,0.3976727,227.48,227.45,0.65934699]
[1738420283534,0.3976727,227.48,227.43,13.41184853]
[1738420283719,0.3976727,227.48,227.44,0.65936376]
[1738420284225,2.4606727,227.52,227.44,0.65936376]
[1738420284732,0.6609,227.51,227.44,0.65936376]
[1738420285234,0.6609,227.51,227.43,0.65941352]
[1738420286917,1.4606727,227.52,227.45,12.75590018]
[1738420287117,1.4606727,227.52,227.46,0.65934133]
[1738420288119,0.063,227.48,227.46,0.65934133]
[1738420288839,0.063,227.48,227.47,26.16774871]
[1738420295740,0.063,227.48,227.47,26.82693521]
[1738420296638,0.063,227.48,227.45,12.75590018]
[1738420296954,0.063,227.48,227.44,0.68926632]
[1738420300251,0.063,227.48,227.47,12.75590018]
[1738420300554,0.063,227.48,227.47,13.41514972]
[1738420300939,0.063,227.48,227.47,26.82699825]
[1738420303239,0.063,227.48,227.47,31.22309825]
[1738420303537,0.063,227.48,227.47,44.22997843]
[1738420305653,0.063,227.48,227.47,58.68095843]
[1738420305857,0.063,227.53,227.52,13.53733853]
[1738420306042,0.063,227.53,227.52,26.95218968]
[1738420306737,0.063,227.53,227.52,27.07767968]
[1738420307634,0.063,227.53,227.52,31.47287968]
[1738420310562,0.063,227.53,227.52,26.95218968]
[1738420310863,0.063,227.53,227.52,26.82669968]
[1738420316146,0.063,227.53,227.52,31.47287968]
[1738420316375,0.063,227.53,227.52,31.34738968]
[1738420317881,0.063,227.53,227.52,26.95218968]
[1738420319576,0.063,227.53,227.52,26.82669968]
[1738420319880,0.063,227.53,227.52,29.45040648]
[1738420321368,0.063,227.53,227.52,26.82669968]
[1738420324869,0.063,227.53,227.51,0.6590762]
[1738420325266,0.063,227.53,227.49,0.65922085]
[1738420325583,6.3602,227.53,227.48,0.03]
[1738420326773,6.3602,227.53,227.48,0.6892664]
[1738420328161,6.3602,227.53,227.49,13.41184853]
[1738420328162,0.063,227.53,227.49,13.41184853]
[1738420328467,0.063,227.53,227.51,13.41184853]
[1738420328706,0.063,227.53,227.52,14.07098827]
[1738420329364,0.063,227.53,227.52,26.82688845]
[1738420330161,0.063,227.53,227.52,14.07098827]
[1738420331463,0.063,227.53,227.52,26.82688845]
[1738420333083,0.063,227.53,227.52,14.07098827]
[1738420334405,0.063,227.53,227.52,26.82688845]
[1738420336702,0.063,227.53,227.52,14.07098827]
[1738420336909,0.063,227.53,227.52,0.65913974]
[1738420337108,0.063,227.53,227.51,0.6591916]
[1738420337409,0.063,227.53,227.51,14.07104013]
[1738420338707,0.063,227.53,227.5,0.65918764]
[1738420339105,0.063,227.53,227.49,0.65926014]
[1738420340112,0.063,227.53,227.5,0.65925902]
[1738420340498,0.063,227.53,227.5,13.4151592]
[1738420341010,0.063,227.53,227.52,12.75590018]
[1738420341310,0.063,227.53,227.52,13.41503476]
[1738420343314,0.063,227.53,227.52,0.65913458]
[1738420344417,0.063,227.53,227.52,13.41503476]
[1738420345818,0.063,227.53,227.52,26.82688329]
[1738420351822,0.063,227.53,227.52,22.23508714]
[1738420353210,0.063,227.53,227.52,22.36057714]
[1738420354724,0.063,227.53,227.52,26.75577714]
[1738420354909,0.063,227.53,227.52,22.23508714]
[1738420357528,0.063,227.53,227.52,8.82323861]
[1738420357738,0.063,227.53,227.52,0.65913458]
[1738420357907,0.063,227.53,227.49,11.14410403]
[1738420357908,0.063,227.53,227.51,13.41184853]
[1738420358103,0.063,227.53,227.52,0.65916166]
[1738420359211,0.063,227.53,227.5,0.65919551]
[1738420364534,0.063,227.53,227.49,0.65921457]
[1738420364712,0.063,227.53,227.48,0.68927661]
[1738420368033,0.063,227.53,227.48,0.03]
[1738420368213,0.7239,227.53,227.48,0.03]
[1738420368415,1.6122,227.52,227.48,0.03]
[1738420369425,1.6122,227.52,227.48,0.68928682]
[1738420369626,1.6122,227.52,227.48,0.03]
[1738420374820,1.6122,227.52,227.48,8.19410403]
[1738420375022,1.6122,227.52,227.49,0.65928126]
[1738420375539,0.063,227.53,227.49,8.82338529]
[1738420376433,0.063,227.53,227.49,0.65928126]
[1738420378742,0.063,227.53,227.49,8.82338529]
[1738420378937,0.063,227.53,227.51,8.16410403]
[1738420379638,0.063,227.53,227.49,8.16410403]
[1738420379941,0.063,227.53,227.5,0.65926353]
[1738420382748,0.063,227.53,227.51,8.16410403]
[1738420382946,0.063,227.53,227.51,0.65920311]
[1738420383252,0.063,227.53,227.51,8.82330714]
[1738420383427,0.063,227.53,227.52,13.41184853]
[1738420385028,0.063,227.53,227.51,8.82330714]
[1738420389734,0.063,227.53,227.52,13.41184853]
[1738420393755,0.063,227.53,227.52,13.78831853]
[1738420393955,0.063,227.53,227.52,18.18351853]
[1738420394146,0.063,227.53,227.52,18.84245455]
[1738420396663,0.063,227.59,227.54,13.53733853]
[1738420396964,0.063,227.59,227.58,8.16410403]
[1738420397259,0.063,227.59,227.58,22.23484696]
[1738420397457,0.063,227.59,227.58,8.82299843]
[1738420407471,0.063,227.59,227.58,22.23484696]
[1738420407859,0.063,227.59,227.58,26.62884696]
[1738420409078,0.063,227.59,227.58,22.23484696]
[1738420410775,0.063,227.59,227.58,26.62884696]
[1738420411579,0.063,227.59,227.58,26.75433696]
[1738420415159,0.063,227.59,227.58,59.53624308]
[1738420415360,0.063,227.59,227.58,26.87982696]
[1738420417768,0.063,227.59,227.58,27.00531696]
[1738420417973,0.063,227.59,227.58,59.66173308]
[1738420419484,0.063,227.59,227.58,27.00531696]
[1738420420785,0.063,227.59,227.58,59.66173308]
[1738420424693,0.063,227.59,227.58,27.00531696]
[1738420426086,0.063,227.59,227.58,59.66173308]
[1738420426288,0.063,227.59,227.58,60.78722308]
[1738420426466,0.063,227.59,227.58,61.78722308]
[1738420428094,0.063,227.59,227.58,144.08722308]
[1738420428267,0.063,227.59,227.58,143.42832868]
[1738420431392,0.063,227.59,227.58,142.42832868]
[1738420434402,0.063,227.59,227.58,155.62832868]
[1738420434702,0.063,227.59,227.58,108.64642256]
[1738420435397,0.063,227.59,227.58,141.30283868]
[1738420435614,0.063,227.59,227.58,144.28283868]
[1738420435791,0.063,227.59,227.58,111.62642256]
[1738420439204,0.063,227.59,227.58,144.28283868]
[1738420440984,0.063,227.59,227.58,111.62642256]
[1738420441183,0.063,227.59,227.58,144.28283868]
[1738420441399,0.063,227.59,227.58,146.40832868]
[1738420441702,0.063,227.6,227.59,18.18211853]
[1738420441892,0.063,227.6,227.59,18.84084486]
[1738420443505,0.063,227.6,227.59,18.58986486]
[1738420443903,0.063,227.6,227.59,14.07057486]
[1738420444207,0.063,227.6,227.59,17.05057486]
[1738420445801,0.063,227.6,227.58,0.65895466]
[1738420446107,0.063,227.6,227.57,0.65904198]
[1738420446508,0.063,227.6,227.58,8.16410403]
[1738420446985,0.063,227.6,227.58,8.82311352]
[1738420448012,0.063,227.6,227.58,8.16410403]
[1738420451112,0.063,227.6,227.59,0.65900148]
[1738420451405,0.063,227.6,227.59,14.07085001]
[1738420451610,0.063,227.6,227.59,22.23495404]
[1738420452488,0.063,227.6,227.59,8.16410403]
[1738420453188,0.063,227.6,227.57,8.82307898]
[1738420455291,0.063,227.6,227.58,0.063]
[1738420456913,0.063,227.6,227.58,13.47484853]
[1738420457213,0.063,227.6,227.59,8.82311426]
[1738420458312,0.063,227.6,227.59,55.01686891]
[1738420459013,0.063,227.6,227.59,59.41066891]
[1738420459197,0.063,227.6,227.59,26.75425279]
[1738420461217,0.063,227.6,227.59,59.53615891]
[1738420461427,0.063,227.6,227.59,59.66164891]
[1738420464523,0.063,227.6,227.59,59.78713891]
[1738420468829,0.063,227.6,227.59,59.53615891]
[1738420469022,0.063,227.6,227.59,22.23496279]
[1738420469410,0.063,227.6,227.59,26.62876279]
[1738420472429,0.063,227.6,227.59,26.75425279]
[1738420477041,0.063,227.6,227.59,22.23496279]
[1738420477522,0.063,227.6,227.59,26.62876279]
[1738420477916,0.063,227.6,227.59,29.58876279]
[1738420478635,0.063,227.6,227.59,29.71425279]
[1738420479024,0.063,227.6,227.59,62.37066891]
[1738420479228,0.063,227.6,227.59,62.43366891]
[1738420479716,0.063,227.6,227.59,29.77725279]
[1738420481846,0.063,227.6,227.59,25.25796279]
[1738420482947,0.063,227.6,227.59,29.77725279]
[1738420484145,0.063,227.6,227.59,25.25796279]
[1738420487140,0.063,227.6,227.59,22.29796279]
[1738420487446,0.063,227.6,227.59,25.25796279]
[1738420488337,0.063,227.6,227.59,22.29796279]
[1738420490250,0.063,227.6,227.59,13.47484853]
[1738420492045,0.063,227.6,227.59,26.03275256]
[1738420492239,0.063,227.6,227.59,26.15824256]
[1738420494350,0.063,227.6,227.59,21.63895256]
[1738420498952,0.063,227.6,227.59,26.03275256]
[1738420509939,0.063,227.6,227.59,26.28373256]
[1738420510241,0.0001,227.6,227.59,59.19112868]
[1738420513866,0.0001,227.6,227.59,26.28373256]
[1738420514076,0.0001,227.6,227.59,26.15824256]
[1738420514655,0.0001,227.6,227.59,59.19112868]
[1738420516877,0.0001,227.6,227.59,26.15824256]
[1738420518859,0.0001,227.6,227.59,26.03275256]
[1738420519882,0.0001,227.6,227.59,28.99275256]
[1738420531207,0.0001,227.6,227.59,21.63895256]
[1738420531506,0.0001,227.6,227.59,0.063]
[1738420532114,82.6001,227.6,227.59,0.063]
[1738420543295,82.6001,227.6,227.59,13.47484853]
[1738420543693,82.6001,227.6,227.59,21.63895256]
[1738420549386,82.6001,227.6,227.59,0.063]
[1738420551707,81.6001,227.6,227.59,0.063]
[1738420559315,2.221,227.6,227.59,0.063]
[1738420560131,22.221,227.6,227.59,0.063]
[1738420561033,22.221,227.6,227.59,0.0004]
[1738420561191,21.0,227.56,227.54,0.063]
[1738420561384,1.6609,227.55,227.54,0.063]
[1738420561602,2.9541,227.55,227.54,0.063]
[1738420561996,9.0531,227.55,227.54,0.063]
[1738420562402,22.0,227.53,227.52,0.063]
[1738420562718,23.73637558,227.53,227.52,0.063]
[1738420563514,2.629,227.49,227.48,0.03]
[1738420563724,3.2899,227.49,227.48,0.03]
[1738420564224,4.2899,227.49,227.48,0.03]
[1738420564420,3.2899,227.49,227.48,0.03]
[1738420565220,20.0,227.45,227.44,0.03]
[1738420568102,0.6609,227.47,227.44,0.03]
[1738420568617,20.0,227.45,227.44,0.03]
[1738420569817,20.6609,227.45,227.44,0.03]
[1738420572814,20.0,227.45,227.44,0.03]
[1738420581600,21.0,227.45,227.44,0.03]
[1738420581805,22.0,227.45,227.44,0.03]
[1738420582014,22.760758,227.45,227.44,0.03]
[1738420585418,23.760758,227.45,227.44,0.03]
[1738420585918,22.760758,227.45,227.44,0.03]
[1738420586119,23.760758,227.45,227.44,0.03]
[1738420587209,24.421658,227.45,227.44,0.03]
[1738420587622,37.83350653,227.45,227.44,0.03]
[1738420587823,1.0,227.4,227.36,0.03]
[1738420588031,0.6609,227.39,227.36,0.03]
[1738420589431,1.0,227.4,227.36,0.03]
[1738420589747,0.6609,227.39,227.36,0.03]
[1738420591042,0.6609,227.41,227.36,0.03]
[1738420591852,82.6,227.38,227.36,0.03]
[1738420592426,82.6,227.38,227.37,8.16410403]
[1738420592739,0.6609,227.43,227.37,8.16410403]
[1738420593042,20.6609,227.44,227.36,8.19410403]
[1738420593246,20.6609,227.44,227.36,0.03]
[1738420593450,20.6609,227.44,227.36,8.19410403]
[1738420595947,82.6,227.43,227.38,0.25098]
[1738420596162,82.6,227.47,227.43,13.53733853]
[1738420596321,0.03,227.48,227.47,14.91454853]
[1738420596521,0.03,227.48,227.47,23.73794542]
[1738420596920,0.03,227.48,227.47,9.66680403]
[1738420597353,0.03,227.48,227.47,1.5027]
[1738420602452,0.03,227.48,227.47,14.91454853]
[1738420602636,0.03,227.48,227.47,23.73801628]
[1738420602829,0.03,227.48,227.47,23.07865256]
[1738420603041,0.03,227.48,227.47,9.66680403]
[1738420604063,0.03,227.48,227.47,23.07865256]
[1738420605264,0.03,227.48,227.47,23.73803334]
[1738420605863,0.03,227.48,227.47,28.13413334]
[1738420613062,0.03,227.48,227.47,28.25962334]
[1738420613458,0.03,227.48,227.47,60.91603946]
[1738420613770,0.03,227.48,227.47,61.04152946]
[1738420614177,0.03,227.48,227.47,28.38511334]
[1738420615450,82.6,227.54,227.47,61.29250946]
[1738420615651,82.6,227.54,227.53,21.57595256]
[1738420616056,82.6,227.54,227.53,22.23511766]
[1738420616844,82.6,227.54,227.53,25.97095256]
[1738420617247,82.6,227.54,227.53,26.63013348]
[1738420617443,82.6,227.54,227.53,25.97095256]
[1738420618066,0.03,227.55,227.47,1.5027]
[1738420618067,82.6,227.53,227.47,1.5027]
[1738420618258,82.6,227.53,227.46,13.21958777]
[1738420619151,82.6,227.53,227.48,8.16410403]
[1738420621368,82.6,227.53,227.49,13.41184853]
[1738420621576,82.6,227.52,227.49,13.41184853]
[1738420622564,82.6,227.52,227.46,8.82342963]
[1738420622974,83.2609,227.51,227.44,0.063]
[1738420625780,83.2609,227.51,227.44,8.22710403]
[1738420626150,83.2609,227.51,227.44,8.88654304]
[1738420626353,83.2609,227.51,227.45,13.41184853]
[1738420627558,82.6,227.5,227.45,13.41184853]
[1738420627760,0.6609,227.49,227.45,13.41184853]
[1738420629191,82.6,227.5,227.45,13.41184853]
[1738420632268,82.6,227.5,227.48,8.16410403]
[1738420633569,82.6,227.49,227.48,21.57595256]
[1738420633768,82.6,227.49,227.48,25.97185256]
[1738420635077,82.6,227.49,227.48,26.09734256]
[1738420635283,82.6,227.49,227.48,58.81675868]
[1738420635671,0.03,227.52,227.49,13.41184853]
[1738420635866,0.03,227.52,227.51,21.57595256]
[1738420637571,0.03,227.52,227.51,25.97135256]
[1738420637773,0.03,227.52,227.51,26.63054128]
[1738420637989,0.03,227.52,227.51,26.75603128]
[1738420638682,0.03,227.52,227.51,26.09684256]
[1738420640499,0.03,227.52,227.51,26.22233256]
[1738420649287,0.03,227.52,227.51,26.09684256]
[1738420650785,0.03,227.52,227.51,26.22233256]
[1738420651809,0.03,227.55,227.54,20.12549]
[1738420652115,0.03,227.55,227.54,45.32050033]
[1738420653709,0.03,227.55,227.54,45.44599033]
[1738420653891,0.03,227.55,227.54,49.96628033]
[1738420657415,0.03,227.6,227.59,0.12549]
[1738420657623,0.03,227.6,227.59,22.36039419]
[1738420658816,0.03,227.6,227.59,26.75419419]
[1738420664018,0.03,227.6,227.56,0.65900025]
[1738420664219,0.03,227.6,227.54,11.12410403]
[1738420664422,0.03,227.6,227.54,8.16410403]
[1738420664423,82.6,227.59,227.54,8.16410403]
[1738420664726,83.2609,227.59,227.55,13.41184853]
[1738420664906,82.6,227.58,227.53,13.41184853]
[1738420665229,0.6609,227.57,227.53,13.41184853]
[1738420666106,0.6609,227.57,227.51,0.063]
[1738420666499,82.6,227.56,227.51,0.063]
[1738420666718,1.6323,227.54,227.51,0.063]
[1738420666914,83.2609,227.53,227.51,0.063]
[1738420669235,82.6,227.53,227.51,0.063]
[1738420670908,82.6,227.53,227.52,13.41184853]
[1738420671426,82.6,227.53,227.51,0.063]
[1738420672205,82.6,227.52,227.51,0.063]
[1738420676434,0.03,227.55,227.53,0.12549]
[1738420676650,0.03,227.55,227.54,22.36053194]
[1738420677611,0.03,227.55,227.54,26.75533194]
[1738420678134,0.03,227.55,227.54,26.62984194]
[1738420680927,0.03,227.55,227.54,21.57595256]
[1738420683341,82.6,227.54,227.51,4.4582]
[1738420683525,82.6,227.54,227.52,13.41184853]
[1738420683733,82.6,227.53,227.51,0.063]
[1738420685042,82.6,227.53,227.52,8.16410403]
[1738420686136,82.6,227.53,227.52,13.34402874]
[1738420686347,0.03,227.55,227.54,33.41184853]
[1738420686644,0.03,227.55,227.54,42.23503616]
[1738420687536,0.03,227.55,227.54,46.62983616]
[1738420687738,0.03,227.55,227.54,51.21452027]
[1738420689924,0.03,227.55,227.54,26.16063667]
[1738420692519,0.03,227.55,227.54,30.55543667]
[1738420693252,0.03,227.55,227.54,31.21459267]
[1738420694353,0.03,227.55,227.54,30.55543667]
[1738420694553,0.03,227.55,227.54,30.61843667]
[1738420697739,0.03,227.55,227.54,26.22363667]
[1738420698630,0.03,227.55,227.54,13.47484853]
[1738420703061,0.03,227.55,227.54,31.27761268]
[1738420703862,0.03,227.55,227.54,31.40310268]
[1738420706865,0.03,227.55,227.54,26.22363667]
[1738420707070,0.03,227.55,227.54,13.47484853]
[1738420707236,0.03,227.55,227.54,0.063]
[1738420713642,1.6868,227.55,227.54,0.063]
[1738420713842,2.3477,227.55,227.54,0.063]
[1738420715962,0.6909,227.55,227.54,0.063]
[1738420716163,0.03,227.55,227.54,0.063]
[1738420716359,0.6909,227.55,227.54,0.063]
[1738420717353,0.03,227.55,227.54,0.063]
[1738420717547,1.6909,227.55,227.54,0.063]
[1738420717745,10.4906,227.55,227.54,0.063]
[1738420721668,1.0,227.52,227.51,0.0102]
[1738420721849,1.6609,227.52,227.51,0.0102]
[1738420725550,21.6609,227.52,227.51,0.0102]
[1738420726375,20.6609,227.52,227.51,0.0102]
[1738420729469,20.6909,227.52,227.51,0.0102]
[1738420735370,0.6909,227.52,227.51,0.0102]
[1738420736085,20.6909,227.52,227.51,0.0102]
[1738420739680,0.6909,227.52,227.51,0.0102]
[1738420740910,0.03,227.52,227.51,0.0102]
[1738420745691,0.03,227.52,227.51,13.42204853]
[1738420745872,0.03,227.52,227.51,18.47672052]
[1738420746072,0.03,227.52,227.51,0.0102]
[1738420748889,0.03,227.52,227.51,8.17529678]
[1738420749665,0.03,227.52,227.51,21.58714531]
[1738420750770,0.03,227.52,227.51,25.98254531]
[1738420750972,0.03,227.52,227.51,26.64175102]
[1738420751896,0.03,227.52,227.51,25.98254531]
[1738420753492,0.03,227.52,227.51,26.10803531]
[1738420753692,0.03,227.52,227.51,33.93052531]
[1738420756395,0.03,227.52,227.51,34.58960702]
[1738420758786,0.03,227.55,227.54,20.12549]
[1738420758993,0.03,227.55,227.54,42.36147336]
[1738420761709,0.03,227.55,227.54,47.84236243]
[1738420762206,0.03,227.55,227.54,48.09334243]
[1738420764407,0.03,227.6,227.59,0.12549]
[1738420764602,0.03,227.6,227.59,22.36132216]
[1738420764813,0.03,227.6,227.59,55.02170928]
[1738420765109,0.03,227.6,227.59,55.14719928]
[1738420765286,0.03,227.6,227.59,22.48681216]
[1738420765930,0.03,227.6,227.59,26.75512216]
[1738420768815,0.03,227.6,227.59,26.88061216]
[1738420769021,0.03,227.6,227.59,65.92279928]
[1738420770101,0.03,227.6,227.59,66.17377928]
[1738420770613,0.0001,227.6,227.59,66.17377928]
[1738420770794,0.063,227.64,227.6,13.78831853]
[1738420770992,0.063,227.64,227.6,16.74831853]
[1738420771202,0.063,227.64,227.62,33.78831853]
[1738420771413,0.063,227.64,227.62,42.61211826]
[1738420773833,0.063,227.64,227.62,47.00531826]